fUSD/lending_fUSD_20260621
["ID","MTS","AMOUNT","RATE_DAILY","PERIOD"]
[425863382,1782010587000,-174.0,0.00013145,2]
[425863383,1782010604000,-335.15,0.00013136,2]
[425863386,1782010655000,-150.0,0.00013143,2]
[425863387,1782010662000,8058.99978882,0.0001,2]
[425863388,1782010668000,1776.31293064,9.04e-05,2]
[425863389,1782010709000,-500.0,0.00013144,2]
[425863390,1782010762000,-159.5102059,0.00013044,2]
[425863392,1782010768000,342.60344177,0.00012343,2]
[425863391,1782010768000,405.77737681,0.00012343,2]
[425863393,1782010775000,3478.82,0.0001282,2]
[425863394,1782010782000,154.48,0.00012801,2]
[425863399,1782010874000,150.0,0.00012692,2]
[425863401,1782010937000,190.99,0.00012636,2]
[425863402,1782010995000,-5260.0937,0.00013123,2]
[425863403,1782011004000,318.26,0.00012643,2]
[425863404,1782011048000,-151.78,0.00013015,2]
[425863405,1782011072000,206.44,0.00012628,2]
[425863407,1782011102000,-247.06979211,0.00013121,2]
[425863408,1782011127000,4000.0,0.00012686,2]
[425863411,1782011156000,166.66,0.00012022,2]
[425863410,1782011156000,-4000.0,0.00013003,2]
[425863412,1782011157000,166.66,0.00012276,2]
[425863413,1782011157000,166.66,0.00012529,2]
[425863414,1782011157000,166.66,0.00012782,2]
[425863415,1782011157000,-166.66,0.00013035,2]
[425863417,1782011157000,-431.88636226,0.00013121,2]
[425863416,1782011157000,-165.7850436,0.00013121,2]
[425863418,1782011209000,-150.0,0.0001312,2]
[425863421,1782011263000,16066.36,0.00012609,2]
[425863420,1782011263000,-250.0,0.00013121,2]
[425863422,1782011277000,500.0,0.00012631,2]
[425863423,1782011278000,1911.46,0.00012631,2]
[425863424,1782011281000,1852.42,0.00012662,2]
[425863425,1782011317000,-19464.44076821,0.00013022,2]
[425863427,1782011318000,221.20796465,0.00012974,2]
[425863426,1782011318000,429.25684512,0.00012974,2]
[425863428,1782011320000,1262.01904734,0.00012974,2]
[425863432,1782011334000,-19464.44076821,0.00013022,2]
[425863433,1782011352000,-28738.72429711,0.00013022,2]
[425863434,1782011369000,-500.0,0.00013021,2]
[425863435,1782011397000,438.22693308,0.00012965,2]
[425863446,1782011431000,-132.47048823,0.00013021,2]
[425863444,1782011431000,-323.00450977,0.00013021,2]
[425863445,1782011431000,-788.49767171,0.00013021,2]
[425863443,1782011431000,-356.30891904,0.00013021,2]
[425863442,1782011431000,-143.69108096,0.00013021,2]
[425863441,1782011431000,-500.0,0.00013021,2]
[425863440,1782011431000,-500.0,0.00013021,2]
[425863439,1782011431000,-230.0752399,0.00013012,2]
[425863476,1782011432000,-788.49767171,0.00013021,2]
[425863477,1782011432000,-788.49767171,0.00013021,2]
[425863478,1782011432000,-788.49767171,0.00013021,2]
[425863480,1782011432000,-788.49767171,0.00013021,2]
[425863472,1782011432000,-788.49767171,0.00013021,2]
[425863474,1782011432000,-788.49767171,0.00013021,2]
[425863473,1782011432000,-788.49767171,0.00013021,2]
[425863484,1782011432000,-788.49767171,0.00013021,2]
[425863475,1782011432000,-788.49767171,0.00013021,2]
[425863486,1782011432000,-788.49767171,0.00013021,2]
[425863492,1782011432000,-788.49767171,0.00013021,2]
[425863488,1782011432000,-788.49767171,0.00013021,2]
[425863490,1782011432000,-788.49767171,0.00013021,2]
[425863471,1782011432000,-788.49767171,0.00013021,2]
[425863504,1782011432000,-788.49767171,0.00013021,2]
[425863494,1782011432000,-788.49767171,0.00013021,2]
[425863498,1782011432000,-788.49767171,0.00013021,2]
[425863502,1782011432000,-788.49767171,0.00013021,2]
[425863496,1782011432000,-788.49767171,0.00013021,2]
[425863500,1782011432000,-788.49767171,0.00013021,2]
[425863510,1782011432000,-788.49767171,0.00013021,2]
[425863482,1782011432000,-788.49767171,0.00013021,2]
[425863470,1782011432000,-788.49767171,0.00013021,2]
[425863467,1782011432000,-788.49767171,0.00013021,2]
[425863468,1782011432000,-788.49767171,0.00013021,2]
[425863508,1782011432000,-788.49767171,0.00013021,2]
[425863449,1782011432000,-788.49767171,0.00013021,2]
[425863447,1782011432000,-656.02718348,0.00013021,2]
[425863448,1782011432000,-788.49767171,0.00013021,2]
[425863450,1782011432000,-788.49767171,0.00013021,2]
[425863451,1782011432000,-788.49767171,0.00013021,2]
[425863453,1782011432000,-788.49767171,0.00013021,2]
[425863454,1782011432000,-788.49767171,0.00013021,2]
[425863452,1782011432000,-788.49767171,0.00013021,2]
[425863455,1782011432000,-788.49767171,0.00013021,2]
[425863457,1782011432000,-788.49767171,0.00013021,2]
[425863456,1782011432000,-788.49767171,0.00013021,2]
[425863458,1782011432000,-788.49767171,0.00013021,2]
[425863461,1782011432000,-788.49767171,0.00013021,2]
[425863462,1782011432000,-788.49767171,0.00013021,2]
[425863460,1782011432000,-788.49767171,0.00013021,2]
[425863459,1782011432000,-788.49767171,0.00013021,2]
[425863464,1782011432000,-788.49767171,0.00013021,2]
[425863463,1782011432000,-788.49767171,0.00013021,2]
[425863465,1782011432000,-788.49767171,0.00013021,2]
[425863466,1782011432000,-788.49767171,0.00013021,2]
[425863469,1782011432000,-788.49767171,0.00013021,2]
[425863512,1782011432000,-788.49767171,0.00013021,2]
[425863558,1782011432000,-788.49767171,0.00013021,2]
[425863506,1782011432000,-788.49767171,0.00013021,2]
[425863572,1782011432000,-788.49767171,0.00013021,2]
[425863569,1782011432000,-788.49767171,0.00013021,2]
[425863573,1782011432000,-788.49767171,0.00013021,2]
[425863575,1782011432000,-788.49767171,0.00013021,2]
[425863574,1782011432000,-788.49767171,0.00013021,2]
[425863577,1782011432000,-788.49767171,0.00013021,2]
[425863578,1782011432000,-788.49767171,0.00013021,2]
[425863516,1782011432000,-788.49767171,0.00013021,2]
[425863576,1782011432000,-788.49767171,0.00013021,2]
[425863581,1782011432000,-788.49767171,0.00013021,2]
[425863582,1782011432000,-788.49767171,0.00013021,2]
[425863580,1782011432000,-788.49767171,0.00013021,2]
[425863584,1782011432000,-500.0,0.00013021,2]
[425863583,1782011432000,-205.39156293,0.00013021,2]
[425863585,1782011432000,-441.34239466,0.00013021,2]
[425863587,1782011432000,-221.80182521,0.00013021,2]
[425863586,1782011432000,-500.0,0.00013021,2]
[425863588,1782011432000,-306.71763003,0.00013021,2]
[425863590,1782011432000,-225.19297582,0.00013021,2]
[425863589,1782011432000,-185.54624658,0.00013021,2]
[425863591,1782011432000,-86336.67130051,0.00013022,2]
[425863571,1782011432000,-788.49767171,0.00013021,2]
[425863564,1782011432000,-788.49767171,0.00013021,2]
[425863579,1782011432000,-788.49767171,0.00013021,2]
[425863560,1782011432000,-788.49767171,0.00013021,2]
[425863562,1782011432000,-788.49767171,0.00013021,2]
[425863514,1782011432000,-788.49767171,0.00013021,2]
[425863523,1782011432000,-788.49767171,0.00013021,2]
[425863521,1782011432000,-788.49767171,0.00013021,2]
[425863525,1782011432000,-788.49767171,0.00013021,2]
[425863527,1782011432000,-788.49767171,0.00013021,2]
[425863529,1782011432000,-788.49767171,0.00013021,2]
[425863531,1782011432000,-788.49767171,0.00013021,2]
[425863542,1782011432000,-788.49767171,0.00013021,2]
[425863537,1782011432000,-788.49767171,0.00013021,2]
[425863535,1782011432000,-788.49767171,0.00013021,2]
[425863518,1782011432000,-788.49767171,0.00013021,2]
[425863539,1782011432000,-788.49767171,0.00013021,2]
[425863544,1782011432000,-788.49767171,0.00013021,2]
[425863546,1782011432000,-788.49767171,0.00013021,2]
[425863550,1782011432000,-788.49767171,0.00013021,2]
[425863554,1782011432000,-788.49767171,0.00013021,2]
[425863548,1782011432000,-788.49767171,0.00013021,2]
[425863552,1782011432000,-788.49767171,0.00013021,2]
[425863567,1782011432000,-788.49767171,0.00013021,2]
[425863557,1782011432000,-788.49767171,0.00013021,2]
[425863533,1782011432000,-788.49767171,0.00013021,2]
[425863616,1782011440000,-1823.79,0.00013214,2]
[425863618,1782011440000,-166.66,0.00013288,2]
[425863621,1782011440000,-150.0,0.00013488,2]
[425863625,1782011440000,-2750.24,0.00013508,2]
[425863622,1782011440000,-155.91294636,0.00013488,2]
[425863623,1782011440000,-2916.13828159,0.0001349,2]
[425863628,1782011440000,-172.53233442,0.0001359,2]
[425863615,1782011440000,-150.0,0.00013151,2]
[425863620,1782011440000,-1374.32466088,0.00013487,2]
[425863613,1782011440000,-3473.324,0.00013144,2]
[425863610,1782011440000,-200.0,0.00013065,2]
[425863614,1782011440000,-172.314,0.00013144,2]
[425863612,1782011440000,-160.0,0.00013128,2]
[425863611,1782011440000,-150.0,0.00013074,2]
[425863609,1782011440000,-1297891.50597989,0.00013022,2]
[425863608,1782011440000,-2211.60912973,0.00013022,2]
[425863607,1782011440000,-1960.63611504,0.00013022,2]
[425863606,1782011440000,-853.6433598,0.00013022,2]
[425863605,1782011440000,-16372.7883815,0.00013022,2]
[425863626,1782011440000,-500.0,0.0001359,2]
[425863617,1782011440000,-163.77,0.00013224,2]
[425863627,1782011440000,-501.44261121,0.0001359,2]
[425863619,1782011440000,-4000.0,0.0001332,2]
[425863629,1782011440000,-150.0,0.0001359,2]
[425863653,1782011440000,-514.14001638,0.00013698,2]
[425863649,1782011440000,-2916.13828154,0.00013647,2]
[425863648,1782011440000,-4000.0,0.00013638,2]
[425863650,1782011440000,-2919.43278759,0.00013647,2]
[425863647,1782011440000,-890.2,0.00013634,2]
[425863624,1782011440000,-2919.4327876,0.0001349,2]
[425863644,1782011440000,-500.0,0.0001359,2]
[425863643,1782011440000,-500.0,0.0001359,2]
[425863646,1782011440000,-600.0,0.000136,4]
[425863642,1782011440000,-500.0,0.0001359,2]
[425863640,1782011440000,-500.0,0.0001359,2]
[425863645,1782011440000,-501.31164154,0.0001359,2]
[425863641,1782011440000,-500.0,0.0001359,2]
[425863636,1782011440000,-500.0,0.0001359,2]
[425863638,1782011440000,-500.0,0.0001359,2]
[425863637,1782011440000,-500.0,0.0001359,2]
[425863635,1782011440000,-500.0,0.0001359,2]
[425863651,1782011440000,-166.66,0.0001366,2]
[425863630,1782011440000,-150.0,0.0001359,2]
[425863631,1782011440000,-208.95657455,0.0001359,2]
[425863634,1782011440000,-186.01565711,0.0001359,2]
[425863632,1782011440000,-150.0,0.0001359,2]
[425863639,1782011440000,-500.0,0.0001359,2]
[425863701,1782011441000,-2916.13828154,0.0001396,2]
[425863698,1782011441000,-2919.43278759,0.00013803,2]
[425863703,1782011441000,-861.9411354,0.0001399,2]
[425863696,1782011441000,-2000.0,0.000138,5]
[425863692,1782011441000,-200.0,0.00013699,2]
[425863689,1782011441000,-554.15,0.00013698,2]
[425863695,1782011441000,-410.27,0.00013768,2]
[425863693,1782011441000,-1300.0,0.000137,5]
[425863691,1782011441000,-2500.0,0.00013699,2]
[425863688,1782011441000,-554.15,0.00013698,2]
[425863694,1782011441000,-151.45777446,0.00013745,7]
[425863699,1782011441000,-2700.0,0.000139,5]
[425863710,1782011441000,-150.0,0.00014264,2]
[425863702,1782011441000,-2919.43278759,0.0001396,2]
[425863705,1782011441000,-150.0,0.0001402,7]
[425863704,1782011441000,-156.578206,0.00014,2]
[425863707,1782011441000,-166.66,0.00014111,2]
[425863706,1782011441000,-694.07,0.00014038,2]
[425863708,1782011441000,-2916.13828154,0.00014117,2]
[425863709,1782011441000,-2919.43278759,0.00014117,2]
[425863714,1782011441000,-2916.13828154,0.0001443,2]
[425863712,1782011441000,-2916.13828154,0.00014273,2]
[425863713,1782011441000,-2919.43278759,0.00014273,2]
[425863686,1782011441000,-554.15,0.00013698,2]
[425863711,1782011441000,-150.0,0.00014264,2]
[425863715,1782011441000,-2919.43278759,0.0001443,2]
[425863700,1782011441000,-4000.0,0.00013955,2]
[425863690,1782011441000,-620.88002704,0.00013698,2]
[425863677,1782011441000,-500.0,0.00013698,2]
[425863687,1782011441000,-554.15,0.00013698,2]
[425863655,1782011441000,-500.0,0.00013698,2]
[425863657,1782011441000,-500.0,0.00013698,2]
[425863661,1782011441000,-500.0,0.00013698,2]
[425863662,1782011441000,-505.0036835,0.00013698,2]
[425863659,1782011441000,-500.0,0.00013698,2]
[425863663,1782011441000,-694.07,0.00013698,2]
[425863666,1782011441000,-694.07,0.00013698,2]
[425863667,1782011441000,-694.07,0.00013698,2]
[425863665,1782011441000,-694.07,0.00013698,2]
[425863668,1782011441000,-694.07,0.00013698,2]
[425863664,1782011441000,-694.07,0.00013698,2]
[425863669,1782011441000,-694.07,0.00013698,2]
[425863672,1782011441000,-694.07,0.00013698,2]
[425863670,1782011441000,-694.07,0.00013698,2]
[425863671,1782011441000,-694.07,0.00013698,2]
[425863673,1782011441000,-500.0,0.00013698,2]
[425863676,1782011441000,-638.82549896,0.00013698,2]
[425863675,1782011441000,-500.0,0.00013698,2]
[425863718,1782011441000,-250.0,0.00014432,2]
[425863678,1782011441000,-333.69862914,0.00013698,2]
[425863679,1782011441000,-554.15,0.00013698,2]
[425863674,1782011441000,-500.0,0.00013698,2]
[425863680,1782011441000,-554.15,0.00013698,2]
[425863683,1782011441000,-554.15,0.00013698,2]
[425863681,1782011441000,-554.15,0.00013698,2]
[425863682,1782011441000,-554.15,0.00013698,2]
[425863685,1782011441000,-554.15,0.00013698,2]
[425863684,1782011441000,-554.15,0.00013698,2]
[425863717,1782011441000,-265.15227808,0.00014432,2]
[425863697,1782011441000,-2916.13828154,0.00013803,2]
[425863719,1782011441000,-300.24300457,0.00014432,2]
[425863752,1782011441000,-500.0,0.00014599,2]
[425863751,1782011441000,-500.0,0.00014599,2]
[425863753,1782011441000,-500.0,0.00014599,2]
[425863755,1782011441000,-500.0,0.00014599,2]
[425863757,1782011441000,-500.0,0.00014599,2]
[425863754,1782011441000,-500.0,0.00014599,2]
[425863756,1782011441000,-500.0,0.00014599,2]
[425863758,1782011441000,-500.0,0.00014599,2]
[425863764,1782011441000,-500.0,0.00014599,2]
[425863763,1782011441000,-500.0,0.00014599,2]
[425863759,1782011441000,-500.0,0.00014599,2]
[425863761,1782011441000,-500.0,0.00014599,2]
[425863760,1782011441000,-500.0,0.00014599,2]
[425863762,1782011441000,-500.0,0.00014599,2]
[425863765,1782011441000,-500.0,0.00014599,2]
[425863766,1782011441000,-500.0,0.00014599,2]
[425863767,1782011441000,-500.0,0.00014599,2]
[425863768,1782011441000,-500.0,0.00014599,2]
[425863770,1782011441000,-500.0,0.00014599,2]
[425863769,1782011441000,-500.0,0.00014599,2]
[425863771,1782011441000,-500.0,0.00014599,2]
[425863773,1782011441000,-500.0,0.00014599,2]
[425863774,1782011441000,-500.0,0.00014599,2]
[425863772,1782011441000,-500.0,0.00014599,2]
[425863775,1782011441000,-511.08149095,0.00014699,2]
[425863777,1782011441000,-500.0,0.00014699,2]
[425863716,1782011441000,-207.14622756,0.00014432,2]
[425863750,1782011441000,-500.0,0.00014599,2]
[425863747,1782011441000,-500.0,0.00014599,2]
[425863776,1782011441000,-500.0,0.00014699,2]
[425863746,1782011441000,-500.0,0.00014599,2]
[425863749,1782011441000,-500.0,0.00014599,2]
[425863721,1782011441000,-600.0,0.00014433,2]
[425863725,1782011441000,-300.0,0.00014433,2]
[425863722,1782011441000,-500.0,0.00014433,2]
[425863724,1782011441000,-300.0,0.00014433,2]
[425863723,1782011441000,-700.0,0.00014433,2]
[425863727,1782011441000,-166.66,0.00014562,2]
[425863726,1782011441000,-9039.25,0.00014444,2]
[425863728,1782011441000,-2916.13828154,0.00014587,2]
[425863731,1782011441000,-500.0,0.00014599,2]
[425863729,1782011441000,-2919.43278759,0.00014587,2]
[425863732,1782011441000,-500.0,0.00014599,2]
[425863730,1782011441000,-1000.0,0.00014593,2]
[425863720,1782011441000,-193.0,0.00014433,2]
[425863733,1782011441000,-500.0,0.00014599,2]
[425863748,1782011441000,-500.0,0.00014599,2]
[425863742,1782011441000,-592.44,0.00014599,2]
[425863743,1782011441000,-500.0,0.00014599,2]
[425863744,1782011441000,-500.0,0.00014599,2]
[425863735,1782011441000,-500.0,0.00014599,2]
[425863741,1782011441000,-592.44,0.00014599,2]
[425863745,1782011441000,-500.0,0.00014599,2]
[425863738,1782011441000,-501.16748521,0.00014599,2]
[425863736,1782011441000,-500.0,0.00014599,2]
[425863739,1782011441000,-592.44,0.00014599,2]
[425863734,1782011441000,-500.0,0.00014599,2]
[425863737,1782011441000,-500.0,0.00014599,2]
[425863740,1782011441000,-592.44,0.00014599,2]
[425863820,1782011442000,-1481691.36547167,0.00015,2]
[425863818,1782011442000,-1846786.0404211,0.00015,2]
[425863816,1782011442000,-554.21,0.00014999,2]
[425863817,1782011442000,-150.0,0.00015,2]
[425863810,1782011442000,-554.15,0.00014999,2]
[425863814,1782011442000,-554.15,0.00014999,2]
[425863812,1782011442000,-554.15,0.00014999,2]
[425863807,1782011442000,-554.15,0.00014999,2]
[425863811,1782011442000,-554.15,0.00014999,2]
[425863808,1782011442000,-554.15,0.00014999,2]
[425863815,1782011442000,-554.15,0.00014999,2]
[425863821,1782011442000,-8112.79712964,0.00015,2]
[425863827,1782011442000,-166.66,0.00015464,2]
[425863819,1782011442000,-416.72388496,0.00015,2]
[425863823,1782011442000,-166.66,0.00015013,2]
[425863824,1782011442000,-151.30166492,0.00015068,2]
[425863826,1782011442000,-1342.26857421,0.00015406,2]
[425863825,1782011442000,-225.81,0.00015068,2]
[425863829,1782011442000,-166.66,0.00015915,2]
[425863828,1782011442000,-1262.01904728,0.00015521,2]
[425863831,1782011442000,-500.0,0.00016438,2]
[425863830,1782011442000,-314.99857486,0.00016,2]
[425863835,1782011442000,-500.0,0.00016438,2]
[425863832,1782011442000,-500.0,0.00016438,2]
[425863813,1782011442000,-554.15,0.00014999,2]
[425863822,1782011442000,-350725.77573121,0.00015,2]
[425863809,1782011442000,-554.15,0.00014999,2]
[425863791,1782011442000,-694.07,0.00014999,2]
[425863804,1782011442000,-554.15,0.00014999,2]
[425863834,1782011442000,-500.0,0.00016438,2]
[425863778,1782011442000,-491.72215115,0.00014699,2]
[425863780,1782011442000,-2919.43278759,0.00014743,2]
[425863781,1782011442000,-3400.0,0.000148,5]
[425863779,1782011442000,-2916.13828154,0.00014743,2]
[425863782,1782011442000,-150.0,0.00014845,7]
[425863783,1782011442000,-151.52879681,0.00014845,7]
[425863788,1782011442000,-600.0,0.000149,5]
[425863784,1782011442000,-205.90025616,0.000149,2]
[425863787,1782011442000,-2919.43278759,0.000149,2]
[425863785,1782011442000,-1743.37827272,0.000149,2]
[425863786,1782011442000,-2916.13828154,0.000149,2]
[425863803,1782011442000,-694.27266759,0.00014999,2]
[425863789,1782011442000,-175.9466729,0.000149,2]
[425863793,1782011442000,-694.07,0.00014999,2]
[425863792,1782011442000,-694.07,0.00014999,2]
[425863794,1782011442000,-694.07,0.00014999,2]
[425863796,1782011442000,-694.07,0.00014999,2]
[425863797,1782011442000,-694.07,0.00014999,2]
[425863795,1782011442000,-694.07,0.00014999,2]
[425863798,1782011442000,-694.07,0.00014999,2]
[425863801,1782011442000,-694.07,0.00014999,2]
[425863799,1782011442000,-694.07,0.00014999,2]
[425863802,1782011442000,-694.07,0.00014999,2]
[425863805,1782011442000,-554.15,0.00014999,2]
[425863806,1782011442000,-554.15,0.00014999,2]
[425863790,1782011442000,-64633.02219681,0.00014989,2]
[425863833,1782011442000,-500.0,0.00016438,2]
[425863800,1782011442000,-694.07,0.00014999,2]
[425863838,1782011442000,-500.0,0.00016438,2]
[425863870,1782011442000,-4788.23416601,0.000199,2]
[425863868,1782011442000,-4788.23416601,0.000197,2]
[425863871,1782011442000,-773.0,0.0002,2]
[425863873,1782011442000,-1409.0,0.0002,2]
[425863875,1782011442000,-204.0,0.0002,2]
[425863895,1782011442000,-4788.23416601,0.000207,2]
[425863876,1782011442000,-513.0,0.0002,2]
[425863874,1782011442000,-173.0,0.0002,2]
[425863878,1782011442000,-510.00006,0.0002,2]
[425863879,1782011442000,-240.0,0.0002,2]
[425863880,1782011442000,-4788.23416601,0.000201,2]
[425863882,1782011442000,-500.0,0.00020144,2]
[425863867,1782011442000,-1959.96363872,0.000197,2]
[425863883,1782011442000,-500.0,0.00020144,2]
[425863885,1782011442000,-500.0,0.00020144,2]
[425863884,1782011442000,-500.0,0.00020144,2]
[425863886,1782011442000,-500.0,0.00020144,2]
[425863889,1782011442000,-4788.23416601,0.000203,2]
[425863888,1782011442000,-500.0,0.00020144,2]
[425863890,1782011442000,-4788.23416601,0.000205,2]
[425863887,1782011442000,-500.0,0.00020144,2]
[425863891,1782011442000,-150.29868404,0.0002058,2]
[425863894,1782011442000,-151.0,0.00020648,2]
[425863893,1782011442000,-117369.44,0.00020648,2]
[425863892,1782011442000,-1262.01904728,0.00020614,2]
[425863896,1782011442000,-4788.23416601,0.000209,2]
[425863881,1782011442000,-500.0,0.00020144,2]
[425863872,1782011442000,-913.0,0.0002,2]
[425863836,1782011442000,-500.0,0.00016438,2]
[425863866,1782011442000,-168.55929479,0.000195,2]
[425863839,1782011442000,-500.0,0.00016438,2]
[425863840,1782011442000,-500.0,0.00016438,2]
[425863837,1782011442000,-500.0,0.00016438,2]
[425863849,1782011442000,-363.9140262,0.00017773,2]
[425863841,1782011442000,-500.0,0.00016438,2]
[425863843,1782011442000,-418.75569264,0.00016438,2]
[425863847,1782011442000,-250.0,0.00017205,2]
[425863869,1782011442000,-1959.96363872,0.000199,2]
[425863851,1782011442000,-199.5,0.00018074,2]
[425863846,1782011442000,-2003.92791393,0.00016999,2]
[425863852,1782011442000,-201.57497821,0.00018182,2]
[425863845,1782011442000,-1500.0,0.00016677,2]
[425863850,1782011442000,-1262.01904728,0.00018067,2]
[425863842,1782011442000,-500.0,0.00016438,2]
[425863848,1782011442000,-1555.5,0.00017225,2]
[425863844,1782011442000,-500.0,0.00016438,2]
[425863865,1782011442000,-4788.23416601,0.000195,2]
[425863861,1782011442000,-4788.23416601,0.000193,2]
[425863862,1782011442000,-168.55929479,0.000193,2]
[425863863,1782011442000,-500.0,0.00019399,2]
[425863854,1782011442000,-335.15,0.00018391,2]
[425863864,1782011442000,-1959.96363872,0.000195,2]
[425863858,1782011442000,-168.55929479,0.000191,2]
[425863855,1782011442000,-190.99,0.00018954,2]
[425863856,1782011442000,-1959.96363872,0.000191,2]
[425863859,1782011442000,-1959.96363872,0.000193,2]
[425863853,1782011442000,-155.17102467,0.00018182,2]
[425863857,1782011442000,-4788.23416601,0.000191,2]
[425863939,1782011443000,-500.0,0.00022583,4]
[425863935,1782011443000,-214.89291742,0.00022236,7]
[425863937,1782011443000,-150.0,0.0002254,2]
[425863938,1782011443000,-500.0,0.00022583,4]
[425863936,1782011443000,-170.11,0.00022311,2]
[425863930,1782011443000,-173.0,0.00022,2]
[425863933,1782011443000,-240.0,0.00022,2]
[425863932,1782011443000,-150.0,0.00022,2]
[425863931,1782011443000,-204.0,0.00022,2]
[425863929,1782011443000,-5000.0,0.00021918,2]
[425863934,1782011443000,-513.0,0.00022143,4]
[425863941,1782011443000,-500.0,0.00022583,4]
[425863957,1782011443000,-500.0,0.00022583,4]
[425863944,1782011443000,-500.0,0.00022583,4]
[425863945,1782011443000,-339.68722958,0.00022583,4]
[425863942,1782011443000,-500.0,0.00022583,4]
[425863947,1782011443000,-150.0,0.00022583,4]
[425863943,1782011443000,-500.0,0.00022583,4]
[425863946,1782011443000,-500.0,0.00022583,4]
[425863949,1782011443000,-150.0,0.00022583,4]
[425863948,1782011443000,-500.0,0.00022583,4]
[425863951,1782011443000,-150.0,0.00022583,4]
[425863952,1782011443000,-500.0,0.00022583,4]
[425863950,1782011443000,-500.0,0.00022583,4]
[425863953,1782011443000,-257.35529707,0.00022583,4]
[425863927,1782011443000,-438.22693307,0.00021227,2]
[425863940,1782011443000,-500.0,0.00022583,4]
[425863928,1782011443000,-737.01883377,0.00021449,2]
[425863914,1782011443000,-151.0,0.00021061,2]
[425863926,1782011443000,-200.59617816,0.00021193,2]
[425863956,1782011443000,-500.0,0.00022583,4]
[425863897,1782011443000,-173.0,0.00021,2]
[425863900,1782011443000,-240.0,0.00021,2]
[425863902,1782011443000,-500.0,0.00021061,2]
[425863899,1782011443000,-204.0,0.00021,2]
[425863903,1782011443000,-500.0,0.00021061,2]
[425863901,1782011443000,-153.22252742,0.00021061,2]
[425863904,1782011443000,-151.0,0.00021061,2]
[425863909,1782011443000,-500.0,0.00021061,2]
[425863906,1782011443000,-151.0,0.00021061,2]
[425863907,1782011443000,-500.0,0.00021061,2]
[425863905,1782011443000,-500.0,0.00021061,2]
[425863908,1782011443000,-151.0,0.00021061,2]
[425863910,1782011443000,-151.0,0.00021061,2]
[425863913,1782011443000,-500.0,0.00021061,2]
[425863912,1782011443000,-151.0,0.00021061,2]
[425863911,1782011443000,-500.0,0.00021061,2]
[425863915,1782011443000,-500.0,0.00021061,2]
[425863920,1782011443000,-500.0,0.00021061,2]
[425863921,1782011443000,-151.0,0.00021061,2]
[425863916,1782011443000,-500.0,0.00021061,2]
[425863919,1782011443000,-500.0,0.00021061,2]
[425863917,1782011443000,-151.0,0.00021061,2]
[425863918,1782011443000,-151.0,0.00021061,2]
[425863923,1782011443000,-500.0,0.00021061,2]
[425863925,1782011443000,-151.0,0.00021061,2]
[425863924,1782011443000,-151.0,0.00021061,2]
[425863922,1782011443000,-151.0,0.00021061,2]
[425863958,1782011443000,-500.0,0.00022583,4]
[425863960,1782011443000,-500.0,0.00022583,4]
[425863954,1782011443000,-500.0,0.00022583,4]
[425863989,1782011443000,-1000.0,0.00024658,2]
[425863991,1782011443000,-194.55,0.000247,14]
[425863992,1782011443000,-150.0,0.0002485,2]
[425863994,1782011443000,-221.37722799,0.00025,2]
[425863993,1782011443000,-173.04672063,0.00025,2]
[425863995,1782011443000,-257.0624543,0.00025,2]
[425863997,1782011443000,-384.0,0.00025299,2]
[425863998,1782011443000,-464.92284466,0.00025481,7]
[425863996,1782011443000,-3566.944,0.00025299,2]